bitfinex/quotes_BTCUSD_20230904
["timestamp","ask_amount","ask_price","bid_price","bid_amount"]
[1693829980885,0.34799512,25840.0,25839.0,0.18532192]
[1693829981103,0.34799512,25840.0,25839.0,0.13552324]
[1693829987788,0.083,25840.0,25839.0,0.13552324]
[1693829989793,0.083,25840.0,25839.0,0.52261002]
[1693829991082,0.33533634,25840.0,25839.0,0.02762324]
[1693829991249,0.33533634,25840.0,25839.0,0.13552324]
[1693829991676,0.083,25840.0,25839.0,0.13552324]
[1693829994562,0.3638824,25840.0,25839.0,0.13552324]
[1693829996419,0.083,25840.0,25839.0,0.13552324]
[1693829996582,0.083,25840.0,25839.0,0.52261002]
[1693829996786,0.083,25840.0,25839.0,0.57487102]
[1693829998201,0.33305351,25840.0,25839.0,0.18778424]
[1693829998435,0.33305351,25840.0,25839.0,0.13552324]
[1693829998641,0.42550489,25840.0,25839.0,0.13552324]
[1693829999271,0.17545138,25840.0,25839.0,0.13552324]
[1693829999473,0.42152783,25840.0,25839.0,0.13552324]
[1693830000564,0.17545138,25840.0,25839.0,0.13552324]
[1693830000787,0.45973893,25840.0,25839.0,0.02762324]
[1693830001741,0.598416,25840.0,25839.0,0.02762324]
[1693830003284,0.50596462,25840.0,25839.0,0.02762324]
[1693830003841,0.22167707,25840.0,25839.0,0.003]
[1693830004049,0.61661924,25840.0,25839.0,0.003]
[1693830004248,0.47794217,25840.0,25839.0,0.003]
[1693830004460,0.61662194,25840.0,25839.0,0.003]
[1693830004654,0.89662194,25840.0,25839.0,0.003]
[1693830004914,0.75794217,25840.0,25839.0,0.003]
[1693830005119,1.21528293,25840.0,25839.0,0.003]
[1693830005528,0.68658489,25840.0,25839.0,0.1109]
[1693830005692,0.45545319,25840.0,25839.0,0.1109]
[1693830006087,0.45545319,25840.0,25839.0,0.13610917]
[1693830010111,0.363,25840.0,25839.0,0.13610917]
[1693830013892,0.363,25840.0,25839.0,0.52319595]
[1693830014111,0.363,25840.0,25839.0,0.57551555]
[1693830018237,0.323,25840.0,25839.0,0.57551555]
[1693830018684,0.323,25840.0,25839.0,0.68341555]
[1693830019121,0.323,25840.0,25839.0,0.57551555]
[1693830019717,0.301,25840.0,25839.0,0.57451555]
[1693830020127,0.303,25840.0,25839.0,0.58251555]
[1693830020328,0.282,25840.0,25839.0,0.58051555]
[1693830020531,0.28,25840.0,25839.0,0.57251555]
[1693830020763,0.283,25840.0,25839.0,0.60151555]
[1693830020880,0.281,25840.0,25839.0,0.57751555]
[1693830021167,0.282,25840.0,25839.0,0.58251555]
[1693830027805,0.04,25844.0,25841.0,0.06]
[1693830028012,0.04,25844.0,25842.0,0.54128749]
[1693830028443,0.04,25845.0,25843.0,0.02542741]
[1693830028689,0.08,25845.0,25844.0,0.60288678]
[1693830028897,0.08,25845.0,25844.0,0.5578182]
[1693830030237,0.17245319,25847.0,25844.0,0.6657182]
[1693830030440,0.17245319,25847.0,25846.0,0.1079]
[1693830030644,0.17245319,25847.0,25846.0,0.49498678]
[1693830031466,0.084,25847.0,25846.0,0.49498678]
[1693830031668,0.084,25847.0,25846.0,0.5733886]
[1693830031916,0.08,25847.0,25846.0,0.59871889]
[1693830032100,0.093,25847.0,25846.0,0.59971889]
[1693830032503,0.08,25847.0,25846.0,0.59871889]
[1693830032761,0.094,25847.0,25846.0,0.60071889]
[1693830033713,0.107,25847.0,25846.0,0.60171889]
[1693830034319,0.35260172,25847.0,25846.0,0.60171889]
[1693830035887,0.107,25847.0,25846.0,0.60171889]
[1693830041597,0.107,25847.0,25846.0,0.60071889]
[1693830047144,0.107,25847.0,25846.0,0.58736768]
[1693830056049,0.32348439,25847.0,25846.0,0.58736768]
[1693830056404,0.41593758,25847.0,25846.0,0.2002809]
[1693830056602,0.41593758,25847.0,25846.0,0.12187908]
[1693830056834,0.32348439,25847.0,25846.0,0.1099]
[1693830057040,0.41593758,25847.0,25846.0,0.1099]
[1693830057241,0.41593758,25847.0,25846.0,0.12581991]
[1693830057631,0.41593758,25847.0,25846.0,0.1099]
[1693830058899,1.57687592,25847.0,25846.0,0.1099]
[1693830061311,1.66919283,25847.0,25846.0,0.1099]
[1693830061515,1.57687592,25847.0,25846.0,0.1099]
[1693830065440,1.76177868,25847.0,25846.0,0.1099]
[1693830065650,1.57687592,25847.0,25846.0,0.1099]
[1693830066666,1.54529429,25847.0,25846.0,0.1099]
[1693830067619,1.54529429,25847.0,25846.0,0.49698678]
[1693830067820,1.54529429,25847.0,25846.0,0.54668546]
[1693830068195,0.19941039,25847.0,25846.0,0.54668546]
[1693830070845,0.11941039,25847.0,25846.0,0.54668546]
[1693830071491,0.107,25847.0,25846.0,0.54668546]
[1693830071684,0.19941039,25847.0,25846.0,0.54668546]
[1693830073635,0.1994939,25847.0,25846.0,0.54668546]
[1693830074008,0.1994939,25847.0,25846.0,0.73668546]
[1693830076109,0.1194939,25847.0,25846.0,0.73668546]
[1693830076941,0.08354686,25847.0,25846.0,0.73668546]
[1693830077141,0.21874085,25848.0,25846.0,0.73668546]
[1693830077354,0.21874085,25848.0,25847.0,0.57265533]
[1693830078261,0.23074085,25848.0,25847.0,0.57265533]
[1693830078419,0.24174085,25848.0,25847.0,0.57265533]
[1693830078627,0.22974085,25848.0,25847.0,0.57265533]
[1693830079064,0.25074085,25848.0,25847.0,0.57465533]
[1693830079507,0.101,25848.0,25847.0,0.57465533]
[1693830079909,0.121,25848.0,25847.0,0.57665533]
[1693830085592,0.121,25848.0,25847.0,0.57465533]
[1693830085787,0.08,25848.0,25847.0,0.57265533]
[1693830086147,0.083,25848.0,25847.0,0.57265533]
[1693830086352,0.08,25848.0,25847.0,0.57265533]
[1693830086550,0.083,25848.0,25847.0,0.57265533]
[1693830087155,0.17844359,25848.0,25847.0,0.57265533]
[1693830087560,0.17544359,25848.0,25847.0,0.57265533]
[1693830087853,0.17844359,25848.0,25847.0,0.57265533]
[1693830089150,0.086,25848.0,25847.0,0.57265533]
[1693830093299,0.086,25848.0,25847.0,0.60374588]
[1693830107109,0.086,25848.0,25847.0,0.2166591]
[1693830107328,0.44484988,25848.0,25847.0,0.2166591]
[1693830107511,0.49114714,25848.0,25847.0,0.13899055]
[1693830107916,0.22474085,25848.0,25847.0,0.13899055]
[1693830108114,1.56774309,25848.0,25847.0,0.13899055]
[1693830108732,1.56774309,25848.0,25847.0,0.1079]
[1693830111726,1.75273028,25848.0,25847.0,0.1079]
[1693830111951,1.75273028,25848.0,25847.0,0.13769]
[1693830116742,1.56774309,25848.0,25847.0,0.13769]
[1693830118892,1.56774309,25848.0,25847.0,0.52477678]
[1693830119059,1.33943746,25848.0,25847.0,0.52477678]
[1693830119228,0.22474085,25848.0,25847.0,0.52477678]
[1693830119496,0.22474085,25848.0,25847.0,0.54816309]
[1693830122221,0.22474085,25848.0,25847.0,0.44026309]
[1693830124469,0.22474085,25848.0,25847.0,0.44805852]
[1693830124825,0.22474085,25848.0,25847.0,0.44026309]
[1693830125850,0.31717739,25848.0,25847.0,0.44026309]
[1693830131610,0.52279244,25848.0,25847.0,0.05317631]
[1693830131815,0.70777963,25848.0,25847.0,0.05317631]
[1693830132501,0.52279244,25848.0,25847.0,0.05317631]
[1693830132708,0.70777963,25848.0,25847.0,0.05317631]
[1693830133337,0.52279244,25848.0,25847.0,0.05317631]
[1693830133743,0.40972804,25848.0,25847.0,0.05317631]
[1693830133955,0.49178743,25848.0,25847.0,0.05317631]
[1693830134073,0.94900227,25848.0,25847.0,0.05317631]
[1693830134287,0.94900227,25848.0,25847.0,0.02979]
[1693830135478,0.94900199,25848.0,25847.0,0.02979]
[1693830136437,0.49178743,25848.0,25847.0,0.02979]
[1693830137120,0.49178743,25848.0,25847.0,0.05319802]
[1693830141012,0.63041466,25848.0,25847.0,0.05319802]
[1693830142901,0.49178743,25848.0,25847.0,0.05319802]
[1693830143075,0.63041597,25848.0,25847.0,0.05319802]
[1693830143269,0.63041597,25848.0,25847.0,0.02979]
[1693830143694,0.63041597,25848.0,25847.0,0.05319802]
[1693830143870,0.49178743,25848.0,25847.0,0.05319802]
[1693830147726,0.94899797,25848.0,25847.0,0.05319802]
[1693830148190,0.49178743,25848.0,25847.0,0.02979]
[1693830148577,0.49178743,25848.0,25847.0,0.04850928]
[1693830149122,0.22466121,25848.0,25847.0,0.54349606]
[1693830149327,0.17843852,25848.0,25847.0,0.54349606]
[1693830149792,0.31710773,25848.0,25847.0,0.51849606]
[1693830151897,0.22466457,25848.0,25847.0,0.51849606]
[1693830155646,0.17846868,25848.0,25847.0,0.51849606]
[1693830157465,0.09846868,25848.0,25847.0,0.55849606]
[1693830157677,0.006,25848.0,25847.0,0.62791606]
[1693830157872,0.006,25848.0,25847.0,0.55849606]
[1693830159262,0.006,25848.0,25847.0,0.63067606]
[1693830159471,0.006,25848.0,25847.0,0.62587606]
[1693830159681,0.006,25848.0,25847.0,0.62353606]
[1693830159891,0.006,25848.0,25847.0,0.63043606]
[1693830160086,0.006,25848.0,25847.0,0.62623606]
[1693830160287,0.006,25848.0,25847.0,0.63259606]
[1693830160411,0.006,25848.0,25847.0,0.62833606]
[1693830160609,0.006,25848.0,25847.0,0.62809606]
[1693830160809,0.006,25848.0,25847.0,0.62803606]
[1693830161015,0.006,25848.0,25847.0,0.62851606]
[1693830161211,0.006,25848.0,25847.0,0.62815606]
[1693830161464,0.006,25848.0,25847.0,0.63685606]
[1693830161788,0.006,25848.0,25847.0,0.63601606]
[1693830161935,0.006,25848.0,25847.0,0.63691606]
[1693830162123,0.006,25848.0,25847.0,0.63781606]
[1693830162323,0.006,25848.0,25847.0,0.64099606]
[1693830162541,0.006,25848.0,25847.0,0.64267606]
[1693830162747,0.006,25848.0,25847.0,0.64309606]
[1693830162951,0.006,25848.0,25847.0,0.64249606]
[1693830163143,0.006,25848.0,25847.0,0.64375606]
[1693830163349,0.006,25848.0,25847.0,0.64333606]
[1693830163569,0.006,25848.0,25847.0,0.64267606]
[1693830163777,0.006,25848.0,25847.0,0.64309606]
[1693830163977,0.006,25848.0,25847.0,0.63643606]
[1693830164299,0.006,25848.0,25847.0,0.63685606]
[1693830164512,0.006,25848.0,25847.0,0.63691606]
[1693830164844,0.006,25848.0,25847.0,0.63649606]
[1693830165040,0.006,25848.0,25847.0,0.63637606]
[1693830165251,0.006,25848.0,25847.0,0.63649606]
[1693830165476,0.006,25848.0,25847.0,0.63637606]
[1693830165679,0.006,25848.0,25847.0,0.63679606]
[1693830165879,0.006,25848.0,25847.0,0.63583606]
[1693830166137,0.006,25848.0,25847.0,0.63589606]
[1693830166315,0.006,25848.0,25847.0,0.63577606]
[1693830166521,0.006,25848.0,25847.0,0.63505606]
[1693830166724,0.006,25848.0,25847.0,0.63655606]
[1693830166949,0.006,25848.0,25847.0,0.63853606]
[1693830167150,0.006,25848.0,25847.0,0.63709606]
[1693830167337,0.006,25848.0,25847.0,0.63793606]
[1693830167560,0.006,25848.0,25847.0,0.63799606]
[1693830167749,0.006,25848.0,25847.0,0.63889606]
[1693830167942,0.006,25848.0,25847.0,0.63877606]
[1693830168141,0.006,25848.0,25847.0,0.63841606]
[1693830168316,0.006,25848.0,25847.0,0.63769606]
[1693830168519,0.006,25848.0,25847.0,0.63661606]
[1693830168723,0.006,25848.0,25847.0,0.63589606]
[1693830168945,0.006,25848.0,25847.0,0.63577606]
[1693830169150,0.006,25848.0,25847.0,0.63559606]
[1693830169371,0.006,25848.0,25847.0,0.63541606]
[1693830169549,1.704904,25850.0,25848.0,0.1479]
[1693830169751,1.704904,25850.0,25849.0,0.57242693]
[1693830169960,1.704904,25850.0,25849.0,0.59571317]
[1693830170319,1.784904,25850.0,25849.0,0.59571317]
[1693830170524,1.779904,25850.0,25849.0,0.59571317]
[1693830170732,1.779904,25850.0,25849.0,0.75042917]
[1693830171313,1.702904,25850.0,25849.0,0.75042917]
[1693830171520,1.782904,25850.0,25849.0,0.75042917]
[1693830171716,1.790904,25850.0,25849.0,0.75142917]
[1693830171963,1.710904,25850.0,25849.0,0.75142917]
[1693830172111,1.722904,25850.0,25849.0,0.75242917]
[1693830172575,1.722904,25850.0,25849.0,0.75042917]
[1693830172576,1.699904,25850.0,25849.0,0.75042917]
[1693830172772,1.781904,25850.0,25849.0,0.75042917]
[1693830172983,1.702904,25850.0,25849.0,0.75042917]
[1693830173292,1.793904,25850.0,25849.0,0.75142917]
[1693830173696,1.713904,25850.0,25849.0,0.75142917]
[1693830174386,1.710904,25850.0,25849.0,0.81892917]
[1693830174548,1.722904,25850.0,25849.0,0.81730917]
[1693830174755,1.711904,25850.0,25849.0,0.81688917]
[1693830174980,1.711904,25850.0,25849.0,0.81694917]
[1693830175161,1.701904,25850.0,25849.0,0.81558917]
[1693830175334,1.704904,25850.0,25849.0,0.75042917]
[1693830175548,1.704904,25850.0,25849.0,0.81582917]
[1693830175750,1.704904,25850.0,25849.0,0.81684917]
[1693830175950,1.704904,25850.0,25849.0,0.81912917]
[1693830176298,1.704904,25850.0,25849.0,0.81684917]
[1693830176500,1.704904,25850.0,25849.0,0.81666917]
[1693830176710,1.704904,25850.0,25849.0,0.81612917]
[1693830176891,1.704904,25850.0,25849.0,0.82506917]
[1693830177123,1.64834299,25850.0,25849.0,0.87886917]
[1693830177328,1.58848037,25850.0,25849.0,0.87658917]
[1693830177506,1.58848037,25850.0,25849.0,0.87832917]
[1693830177736,1.58848037,25850.0,25849.0,0.87880917]
[1693830177941,1.58648037,25850.0,25849.0,0.87850917]
[1693830178137,1.58348037,25850.0,25849.0,0.87832917]
[1693830178331,1.58448037,25850.0,25849.0,0.89452917]
[1693830178491,1.58448037,25850.0,25849.0,0.89316917]
[1693830178700,1.58448037,25850.0,25849.0,0.88938917]
[1693830178905,1.58448037,25850.0,25849.0,0.89610917]
[1693830179103,1.58348037,25850.0,25849.0,0.87592917]
[1693830179316,1.58348037,25850.0,25849.0,0.87934917]
[1693830179511,1.58348037,25850.0,25849.0,0.88150917]
[1693830179724,1.58348037,25850.0,25849.0,0.88138917]
[1693830179975,1.58548037,25850.0,25849.0,0.91020917]
[1693830180144,1.58548037,25850.0,25849.0,0.90996917]
[1693830180441,1.58548037,25850.0,25849.0,0.92882917]
[1693830180627,1.58548037,25850.0,25849.0,0.90864917]
[1693830180843,1.58548037,25850.0,25849.0,0.90720917]
[1693830181034,1.58548037,25850.0,25849.0,0.90666917]
[1693830181248,1.58548037,25850.0,25849.0,0.89952917]
[1693830181493,1.58548037,25850.0,25849.0,0.89088917]
[1693830181651,1.58548037,25850.0,25849.0,0.88920917]
[1693830181981,1.58548037,25850.0,25849.0,0.88914917]
[1693830182175,1.58548037,25850.0,25849.0,0.89547125]
[1693830182349,1.58548037,25850.0,25849.0,0.82719125]
[1693830186722,1.58548037,25850.0,25849.0,1.01719125]
[1693830188531,1.58548037,25850.0,25849.0,1.08613125]
[1693830188757,1.58548037,25850.0,25849.0,1.08895125]
[1693830188960,1.58548037,25850.0,25849.0,1.08523125]
[1693830189153,1.58548037,25850.0,25849.0,1.08631125]
[1693830189505,1.58548037,25850.0,25849.0,1.01719125]
[1693830190730,1.87226678,25850.0,25849.0,1.01719125]
[1693830191846,1.58548037,25850.0,25849.0,1.01719125]
[1693830203205,1.75785836,25850.0,25849.0,0.25004832]
[1693830203452,3.01103102,25850.0,25849.0,0.25004832]
[1693830203634,2.07571424,25850.0,25849.0,0.219]
[1693830203825,3.1903348,25850.0,25849.0,0.219]
[1693830204030,3.1893348,25850.0,25849.0,0.205]
[1693830204234,3.2093348,25850.0,25849.0,0.223769]
[1693830204447,3.2293348,25850.0,25849.0,0.225769]
[1693830204843,3.2083348,25850.0,25849.0,0.223769]
[1693830205244,2.07371424,25850.0,25849.0,0.221769]
[1693830205444,3.18834594,25850.0,25849.0,0.221769]
[1693830205694,2.09871424,25850.0,25849.0,0.223769]
[1693830206228,2.12271424,25850.0,25849.0,0.225769]
[1693830207358,2.12271424,25850.0,25849.0,0.63614202]
[1693830207568,2.07650794,25850.0,25849.0,0.63614202]
[1693830209380,2.07650794,25850.0,25849.0,0.74404202]
[1693830212031,2.07650794,25850.0,25849.0,0.75180501]
[1693830212684,1.71248037,25850.0,25849.0,0.75180501]
[1693830213528,1.68848037,25850.0,25849.0,0.74980501]
[1693830213721,1.67548037,25850.0,25849.0,0.74880501]
[1693830214105,1.68648037,25850.0,25849.0,0.74880501]
[1693830214279,1.66348037,25850.0,25849.0,0.74780501]
[1693830214682,1.67448037,25850.0,25849.0,0.74880501]
[1693830215897,1.67448037,25850.0,25849.0,0.74980501]
[1693830215898,1.68648037,25850.0,25849.0,0.74980501]
[1693830217858,1.60648037,25850.0,25849.0,0.74980501]
[1693830218090,1.60648037,25850.0,25849.0,0.85574501]
[1693830218269,1.60648037,25850.0,25849.0,0.85766501]
[1693830218393,1.60648037,25850.0,25849.0,1.19670501]
[1693830218762,1.68648037,25850.0,25849.0,1.19670501]
[1693830224920,1.66348037,25850.0,25849.0,1.19470501]
[1693830225453,1.66948037,25850.0,25849.0,1.19470501]
[1693830225675,1.66548037,25850.0,25849.0,1.19470501]
[1693830226033,1.66948037,25850.0,25849.0,1.19470501]
[1693830226462,1.58748037,25850.0,25849.0,1.19470501]
[1693830226672,1.66748037,25850.0,25849.0,1.19470501]
[1693830227454,1.66948037,25850.0,25849.0,1.19470501]
[1693830228335,1.58948037,25850.0,25849.0,1.19470501]
[1693830228515,1.58948037,25850.0,25849.0,1.29010501]
[1693830228516,1.55456051,25850.0,25849.0,1.29010501]
[1693830228767,1.46975514,25850.0,25849.0,1.29676501]
[1693830228934,1.46975514,25850.0,25849.0,1.30956501]
[1693830229161,1.46975514,25850.0,25849.0,1.31934501]
[1693830229339,1.46575514,25850.0,25849.0,1.31070501]
[1693830229471,1.46375514,25850.0,25849.0,1.30794501]
[1693830229682,1.46575514,25850.0,25849.0,1.33418501]
[1693830229880,1.46775514,25850.0,25849.0,1.35806501]
[1693830230081,1.46775514,25850.0,25849.0,1.35788501]
[1693830230283,1.46775514,25850.0,25849.0,1.35902501]
[1693830230533,1.46775514,25850.0,25849.0,1.35860501]
[1693830230874,1.46575514,25850.0,25849.0,1.33506501]
[1693830231061,1.46575514,25850.0,25849.0,1.31452501]
[1693830231267,1.46575514,25850.0,25849.0,1.33488501]
[1693830231490,1.46575514,25850.0,25849.0,1.33656501]
[1693830231694,1.46775514,25850.0,25849.0,1.35464501]
[1693830231953,1.46775514,25850.0,25849.0,1.35404501]
[1693830232079,1.46775514,25850.0,25849.0,1.35392501]
[1693830232284,1.46775514,25850.0,25849.0,1.35386501]
[1693830232485,1.46775514,25850.0,25849.0,1.35752501]
[1693830232685,1.46775514,25850.0,25849.0,1.36484501]
[1693830232894,1.46775514,25850.0,25849.0,1.36820501]
[1693830233118,1.46775514,25850.0,25849.0,1.36862501]
[1693830233310,1.46775514,25850.0,25849.0,1.36328501]
[1693830233511,1.46775514,25850.0,25849.0,1.36340501]
[1693830233852,1.46775514,25850.0,25849.0,1.36718501]
[1693830234073,1.46775514,25850.0,25849.0,1.36772501]
[1693830234172,1.46775514,25850.0,25849.0,1.36808501]
[1693830234367,1.46775514,25850.0,25849.0,1.36742501]
[1693830234574,1.46775514,25850.0,25849.0,1.36772501]
[1693830234779,1.46775514,25850.0,25849.0,1.36748501]
[1693830234966,1.46775514,25850.0,25849.0,1.36754501]
[1693830235180,1.46775514,25850.0,25849.0,1.36760501]
[1693830235494,1.46775514,25850.0,25849.0,1.36754501]
[1693830235689,1.46775514,25850.0,25849.0,1.36736501]
[1693830235897,1.46775514,25850.0,25849.0,1.36940501]
[1693830236096,1.46775514,25850.0,25849.0,1.36844501]
[1693830236294,1.46775514,25850.0,25849.0,1.36940501]
[1693830236496,1.46775514,25850.0,25849.0,1.36898501]
[1693830236701,1.46775514,25850.0,25849.0,1.45688501]
[1693830237033,1.46775514,25850.0,25849.0,1.48042501]
[1693830237232,1.46775514,25850.0,25849.0,1.47604501]
[1693830237442,1.46775514,25850.0,25849.0,1.47574501]
[1693830237601,1.46775514,25850.0,25849.0,1.47568501]
[1693830237797,1.46775514,25850.0,25849.0,1.47580501]
[1693830238054,1.46775514,25850.0,25849.0,1.47592501]
[1693830238246,1.46775514,25850.0,25849.0,1.47586501]
[1693830238476,1.46775514,25850.0,25849.0,1.47622501]
[1693830238627,0.24586069,25855.0,25854.0,0.4669]
[1693830238628,0.1535,25855.0,25854.0,0.4669]
[1693830238837,0.08,25857.0,25856.0,0.04]
[1693830239113,0.08,25857.0,25856.0,0.79708749]
[1693830239255,0.08,25857.0,25856.0,0.65867885]
[1693830239913,0.08,25857.0,25856.0,0.81335285]
[1693830240173,0.08,25857.0,25856.0,1.00942014]
[1693830240551,0.08,25857.0,25856.0,0.90152014]
[1693830241150,0.08,25857.0,25856.0,0.91252014]
[1693830241344,0.081,25857.0,25856.0,0.91252014]
[1693830241722,0.081,25857.0,25856.0,1.31942014]
[1693830241946,0.081,25857.0,25856.0,1.42732014]
[1693830244856,0.081,25857.0,25856.0,1.41152807]
[1693830245265,0.001,25857.0,25856.0,2.05520807]
[1693830245469,0.001,25857.0,25856.0,1.97282807]
[1693830246274,0.001,25857.0,25856.0,2.04638807]
[1693830246495,0.001,25857.0,25856.0,1.97282807]
[1693830247095,0.001,25857.0,25856.0,2.07502807]
[1693830247296,0.001,25857.0,25856.0,2.37670807]
[1693830247559,0.001,25857.0,25856.0,2.37712807]
[1693830247876,0.001,25857.0,25856.0,2.37694807]
[1693830248148,0.001,25857.0,25856.0,2.37640807]
[1693830248357,0.001,25857.0,25856.0,2.56634807]
[1693830248596,0.001,25857.0,25856.0,2.57894807]
[1693830248716,0.001,25857.0,25856.0,2.57864807]
[1693830248899,0.001,25857.0,25856.0,2.57960807]
[1693830249122,0.001,25857.0,25856.0,2.57984807]
[1693830249287,0.001,25857.0,25856.0,2.58020807]
[1693830249492,0.001,25857.0,25856.0,2.55786807]
[1693830249704,0.001,25857.0,25856.0,2.58230807]
[1693830249897,0.001,25857.0,25856.0,2.57972807]
[1693830250104,0.001,25857.0,25856.0,2.59136807]
[1693830250331,0.001,25857.0,25856.0,2.61946807]
[1693830250736,0.001,25857.0,25856.0,2.61892807]
[1693830250940,0.001,25857.0,25856.0,2.61910807]
[1693830251143,0.001,25857.0,25856.0,2.61928807]
[1693830251378,0.001,25857.0,25856.0,2.63174641]
[1693830251593,0.001,25857.0,25856.0,2.62898641]
[1693830251756,0.001,25857.0,25856.0,2.62694641]
[1693830251963,0.001,25857.0,25856.0,2.62088641]
[1693830252165,0.001,25857.0,25856.0,2.60514641]
[1693830252367,0.001,25857.0,25856.0,2.60766641]
[1693830252570,0.001,25857.0,25856.0,2.63224641]
[1693830252809,0.081,25859.0,25856.0,2.63224641]
[1693830252810,0.081,25859.0,25858.0,0.4469]
[1693830252977,0.081,25859.0,25858.0,0.94188678]
[1693830253206,0.081,25859.0,25858.0,1.01310678]
[1693830253410,0.081,25859.0,25858.0,1.02330678]
[1693830253619,0.081,25859.0,25858.0,1.02420678]
[1693830253866,0.081,25859.0,25858.0,1.24032173]
[1693830254052,0.081,25859.0,25858.0,1.25102173]
[1693830254253,0.056,25859.0,25858.0,1.23692173]
[1693830254468,0.2153,25860.0,25859.0,0.4469]
[1693830254672,0.2153,25860.0,25859.0,0.94188678]
[1693830254917,0.2153,25860.0,25859.0,1.09340616]
[1693830256157,0.2153,25860.0,25859.0,1.09540616]
[1693830256364,0.2153,25860.0,25859.0,0.68850616]
[1693830256556,0.2153,25860.0,25859.0,0.68950616]
[1693830260015,0.2153,25860.0,25859.0,1.09640616]
[1693830265756,0.2153,25860.0,25859.0,0.68950616]
[1693830266708,0.056,25857.0,25856.0,0.905974]
[1693830266945,0.21083471,25857.0,25856.0,0.7513]
[1693830267123,0.056,25857.0,25856.0,0.7513]
[1693830267494,0.34103731,25857.0,25856.0,0.7513]
[1693830267691,0.34103731,25857.0,25856.0,0.8782]
[1693830268087,0.34103731,25857.0,25856.0,0.97002]
[1693830268517,0.34203731,25857.0,25856.0,0.98802]
[1693830268924,0.34203731,25857.0,25856.0,0.96902]
[1693830269150,0.34203731,25857.0,25856.0,0.95102]
[1693830269151,0.34103731,25857.0,25856.0,0.95102]
[1693830269346,0.35103731,25857.0,25856.0,0.95102]
[1693830272418,0.35103731,25857.0,25856.0,0.84312]
[1693830274390,0.44322188,25857.0,25856.0,0.84312]
[1693830276051,0.15818457,25857.0,25856.0,0.95102]
[1693830276261,0.066,25857.0,25856.0,0.95102]
[1693830276727,0.066,25857.0,25856.0,1.49230749]
[1693830276923,0.066,25857.0,25856.0,1.44600678]
[1693830280943,0.058,25857.0,25856.0,1.44600678]
[1693830281275,0.058,25857.0,25856.0,1.45500678]
[1693830281827,0.056,25857.0,25856.0,1.44600678]
[1693830282206,0.064,25857.0,25856.0,1.45700678]
[1693830282356,0.064,25857.0,25856.0,1.44600678]
[1693830282752,0.066,25857.0,25856.0,1.44600678]
[1693830282943,0.066,25857.0,25856.0,1.33810678]
[1693830285933,0.066,25857.0,25856.0,1.85290678]
[1693830286177,0.066,25857.0,25856.0,1.89290678]
[1693830286920,0.056,25857.0,25856.0,1.89290678]
[1693830287122,0.056,25857.0,25856.0,1.78500678]
[1693830287332,0.056,25857.0,25856.0,1.80500678]
[1693830287768,0.056,25857.0,25856.0,1.79600678]
[1693830287952,0.056,25857.0,25856.0,1.80500678]
[1693830288529,0.056,25857.0,25856.0,1.79400678]
[1693830288984,0.056,25857.0,25856.0,1.80500678]
[1693830293006,0.056,25857.0,25856.0,1.91290678]
[1693830297905,0.056,25857.0,25856.0,1.80500678]
[1693830299610,0.056,25857.0,25856.0,1.91290678]
[1693830301768,0.056,25857.0,25856.0,1.80500678]
[1693830302176,0.056,25857.0,25856.0,1.39810678]
[1693830312205,0.056,25857.0,25856.0,0.97102]
[1693830312423,0.056,25857.0,25856.0,1.01102]
[1693830314173,0.051,25857.0,25856.0,1.01102]
[1693830314989,0.051,25857.0,25856.0,1.39810678]
[1693830320127,0.051,25857.0,25856.0,1.50600678]
[1693830324870,0.051,25857.0,25856.0,1.57164678]
[1693830325105,0.051,25857.0,25856.0,1.50600678]
[1693830327885,0.051,25857.0,25856.0,1.58148678]
[1693830328190,0.051,25857.0,25856.0,1.58274678]
[1693830328383,0.051,25857.0,25856.0,1.58250678]
[1693830328585,0.051,25857.0,25856.0,1.58130678]
[1693830328812,0.051,25857.0,25856.0,1.58244678]
[1693830329025,0.051,25857.0,25856.0,1.58220678]
[1693830329234,0.051,25857.0,25856.0,1.60350678]
[1693830329465,0.051,25858.0,25857.0,0.04]
[1693830329664,0.051,25858.0,25857.0,0.42708678]
[1693830329868,0.051,25858.0,25857.0,0.53498678]
[1693830330092,0.051,25858.0,25857.0,0.61796678]
[1693830330303,0.051,25858.0,25856.0,0.7713]
[1693830330304,0.051,25857.0,25856.0,0.7713]
[1693830330511,0.20583471,25857.0,25856.0,0.84343]
[1693830330736,0.16323861,25857.0,25856.0,0.84343]
[1693830331119,0.30159654,25857.0,25856.0,0.83243]
[1693830331539,0.30159654,25857.0,25856.0,0.84143]
[1693830331963,0.30159654,25857.0,25856.0,0.94933]
[1693830332163,0.30459654,25857.0,25856.0,0.94933]
[1693830332768,0.16623861,25857.0,25856.0,0.94933]
[1693830333391,0.16623861,25857.0,25856.0,0.94033]
[1693830333778,0.17423861,25857.0,25856.0,0.94033]
[1693830338639,0.4220625,25857.0,25856.0,0.94033]
[1693830340972,0.15423861,25857.0,25856.0,0.94033]
[1693830341556,0.17423861,25857.0,25856.0,0.94033]
[1693830341757,0.082,25857.0,25856.0,0.94033]
[1693830343066,0.062,25857.0,25856.0,0.94033]
[1693830346881,0.062,25857.0,25856.0,1.32741678]
[1693830356581,0.062,25857.0,25856.0,1.43531678]
[1693830358841,0.062,25857.0,25856.0,1.47531678]
[1693830359757,0.051,25857.0,25856.0,1.47531678]
[1693830359958,0.051,25857.0,25856.0,1.48431678]
[1693830360163,0.051,25857.0,25856.0,1.49531678]
[1693830361249,0.051,25857.0,25856.0,1.48631678]
[1693830361453,0.051,25857.0,25856.0,1.49531678]
[1693830363258,0.051,25857.0,25856.0,1.57457678]
[1693830363465,0.09223861,25861.0,25858.0,0.04]
[1693830363718,0.051,25859.0,25858.0,0.19420071]
[1693830363965,0.051,25859.0,25858.0,0.27151307]
[1693830364368,0.051,25859.0,25858.0,0.42617607]
[1693830365355,0.062,25859.0,25858.0,0.42617607]
[1693830366961,0.062,25859.0,25858.0,0.38617607]
[1693830367144,0.062,25859.0,25858.0,0.42617607]
[1693830368492,0.011,25859.0,25858.0,1.00792285]
[1693830368701,0.011,25859.0,25858.0,1.00924285]
[1693830368904,0.011,25859.0,25858.0,1.00660285]
[1693830369117,0.054,25859.0,25858.0,1.01056285]